Cogmind - Beta 16 --- EXPLORER MODE // 2026.01.28 @ 15:24:27 Player: K.K.Y. Result: Destroyed by YI-UF0 with YI-UF0's Doublenader Performance ------------- Evolutions (0) 0 Regions Visited (2) 400 Robots Destroyed (23) 115 Value Destroyed (241) 241 Prototype IDs (0) 0 Alien Tech Used (0) 0 Bonus (0) 0 TOTAL SCORE: 756 Bonus ------- None Cogmind --------- Core Integrity 0/250 Matter 191/300 Energy 100/100 System Corruption 0% Temperature Cool (0) Movement Treading (320) Ox2 Location -10/Mines Parts ------- > --- POWER (1) -------- (None) > --- PROPULSION (2) --- Improved Treads > --- UTILITY (3) ------ High-capacity Storage Unit Structural Scanner > --- WEAPON (2) ------- Spread Laser Autogun > --- INVENTORY (20) --- Fission Core Medium Storage Unit Huge Storage Unit Improved Terrain Scanner Medium Armor Plating Medium Armor Plating Medium Armor Plating Autogun Autogun Autogun Mining Laser Peak State ------------ > --- POWER ------------ Ion Engine > --- PROPULSION ------- Improved Treads Improved Treads > --- UTILITY ---------- High-capacity Storage Unit Structural Scanner Medium Armor Plating > --- WEAPON ----------- Spread Laser Spread Laser > --- INVENTORY -------- Improved Treads Improved Treads Medium Storage Unit Huge Storage Unit Improved Terrain Scanner Medium Armor Plating Medium Armor Plating Medium Armor Plating Spread Laser Spread Laser Autogun Autogun Autogun Autogun Mining Laser [Rating: 15] Favorites ----------- Power Ion Engine Engine Ion Engine Propulsion Improved Treads Treads Improved Treads Utility Structural Scanner Device Structural Scanner Storage High-capacity Storage Unit Protection Medium Armor Plating Weapon Spread Laser Energy Gun Spread Laser Ballistic Gun Assault Rifle Build | -11 -10 -10 ------- Run | Yrd Mat Min Slots Evolved 1 | . 1 . Power . | . . . Propulsion . | . . . Utility 1 | . 1 . Weapon . | . . . Parts Attached 20 | 6 7 7 Power 1 | 1 . . Engine 1 | 1 . . Core . | . . . Reactor . | . . . Propulsion 6 | 2 2 2 Treads 6 | 2 2 2 Leg . | . . . Wheel . | . . . Hover . | . . . Flight . | . . . Utility 5 | 1 2 2 Device 2 | . 1 1 Storage 2 | 1 1 . Processor . | . . . Hackware . | . . . Protection 1 | . . 1 Artifact . | . . . Weapon 8 | 2 3 3 Energy Gun 4 | . 2 2 Energy Cannon . | . . . Ballistic Gun 4 | 2 1 1 Ballistic Cannon . | . . . Launcher . | . . . Special Weapon . | . . . Impact Weapon . | . . . Slashing Weapon . | . . . Piercing Weapon . | . . . Special Melee Weapon . | . . . Unidentified Prototypes . | . . . Parts Lost 6 | . . 6 Power 1 | . . 1 Propulsion 2 | . . 2 Utility 1 | . . 1 Weapon 2 | . . 2 Highest Loss Streak 6 | . . 6 To Critical Strikes . | . . . Average Backups 9 | 1 8 11 Power . | . . . Propulsion . | . . . Utility 4 | . 4 6 Weapon 3 | . 3 4 Tool/Special . | . . . Unused Backups 10 | . . 10 Power 1 | . . 1 Propulsion . | . . . Utility 5 | . . 5 Weapon 4 | . . 4 Tool/Special . | . . . Average Slot Usage (%) 71 | . 70 71 Engine 2 | . 2 1 Treads 22 | . 23 19 Device 8 | . 7 12 Storage 12 | . 12 12 Energy Gun 12 | . 12 14 Ballistic Gun 11 | . 12 9 Peak Build Rating 15 | 6 14 15 Average Rating 9 | 5 8 11 On Entrance 6 | . 6 14 Avg Prop Armor Cover (%) 12 | . . 12 Naked Turns . | . . . Heaviest Build 52 | 18 52 52 Greatest Support 46 | 40 46 46 Greatest Overweight (x) 5 | . 5 2 Average Overweight (x) . | . . 1 Largest Inventory Capacity 20 | 10 20 20 Average Capacity 15 | 9 14 20 Most Carried 17 | 5 17 16 Average Carried 9 | 1 8 11 Final Capacity 20 | 10 20 20 Final Carried 16 | 2 16 11 Class Distribution -------------------- 100% | Hacker-Mutant Dominant Class ---------------- Hacker-Mutant | -10/Materials Hacker-Mutant | -10/Mines Resources | -11 -10 -10 ----------- Run | Yrd Mat Min Matter Collected 554 | 288 193 73 Remotely . | . . . Salvage Created 597 | 143 348 106 Parts 57 | 9 35 13 Haulers Intercepted 1 | . 1 . Recyclers Shooed 1 | . 1 . Parts Field Recycled . | . . . Retrieved Matter . | . . . Parts Self-Destructed . | . . . Prevented . | . . . Parts Restored . | . . . Kills | -11 -10 -10 ------- Run | Yrd Mat Min Combat Hostiles Destroyed 17 | . 4 13 Guns 17 | . 4 13 Classes Destroyed 8 | 2 4 2 Builder 5 | . 4 1 Tunneler 3 | 3 . . Hauler 1 | . 1 . Recycler 2 | 1 1 . Watcher 3 | . 3 . Swarmer 8 | . 4 4 Demolisher 1 | . . 1 Assembled 8 | . . 8 Best Kill Streak 8 | 4 4 8 Combat Bots Only 8 | . 4 8 Max Kills in Single Turn 2 | 1 2 1 Gunslinging 1 | . 1 . Exploded . | . . . Melee . | . . . Uniques/NPCs Destroyed . | . . . Combat | -11 -10 -10 -------- Run | Yrd Mat Min Hostile Shots Fired 134 | . 10 124 Missed 26 | . 5 21 Hits 108 | . 5 103 Melee 7 | . . 7 Projectile 101 | . 5 96 AOE 17 | . . 17 Critical Strikes 2 | . . 2 Part Disruptions 1 | . . 1 Damage Taken 1197 | . 28 1169 Core 254 | . . 254 Absorbed by Shields . | . . . Ignored by Resistances 704 | . 19 685 Core Remaining (%) 100 | 100 . . Volleys Fired 58 | 7 21 30 Largest 2 | 2 2 2 Hottest 130 | 40 130 130 Shots Fired 96 | 14 39 43 Gun 96 | 14 39 43 Cannon . | . . . Launcher . | . . . Special . | . . . Kinetic 63 | 14 35 14 Thermal 33 | . 4 29 Explosive . | . . . Electromagnetic . | . . . Robot Hit Streak 22 | 10 22 11 Robot Miss Streak 4 | . 2 4 Penetration Max . | . . . Secondary Targets 2 | . 2 . Max Gunslinging Chain 1 | . 1 . Shots Hit Robots 81 | 10 32 39 Core Hits 83 | 5 22 56 Critical Kills . | . . . Critical Parts Destroyed . | . . . Critical Strikes . | . . . Melee Attacks . | . . . Impact . | . . . Slashing . | . . . Piercing . | . . . Sneak Attacks . | . . . Combat Hostiles . | . . . Follow-up Attacks . | . . . Damage Inflicted 1095 | 105 352 638 Guns 1095 | 105 352 638 Cannons . | . . . Explosions . | . . . Melee . | . . . Ramming . | . . . Kinetic 589 | 105 317 167 Thermal 506 | . 35 471 Explosive . | . . . Electromagnetic . | . . . Impact . | . . . Slashing . | . . . Piercing . | . . . Highest Corruption . | . . . Average Corruption . | . . . Corruption Purged . | . . . Corruption Blocked . | . . . Overload Shots . | . . . Overflow Damage . | . . . Projectiles . | . . . Explosions . | . . . Melee . | . . . Knockbacks . | . . . Impact . | . . . Kinetic . | . . . Secondary . | . . . Self-Inflicted Damage . | . . . Shots . | . . . Rammed . | . . . Targets Rammed . | . . . Kicked . | . . . Crushed . | . . . Highest Temperature 723 | . 54 723 Average Temperature 286 | . 29 314 Received Heat Transfer 120 | . . 120 Effects 14 | . . 14 Shutdowns 1 | . . 1 Energy Bleed 1 | . . 1 Interference 1 | . . 1 Matter Decay 1 | . . 1 Short Circuit 4 | . . 4 Damage (minor) 1 | . . 1 Damage (major) 4 | . . 4 Damage (core) 1 | . . 1 Siege Activations . | . . . Martial Activations . | . . . Shielding Activations . | . . . Robots Disrupted . | . . . Combat Hostiles . | . . . Robots Corrupted . | . . . Combat Hostiles . | . . . Parts Fried . | . . . Impact Corruptions . | . . . Robots Melted . | . . . Combat Hostiles . | . . . Parts Melted . | . . . Heat Transferred 630 | . 50 580 Parts Sabotaged . | . . . Parts Stolen . | . . . Parts Stripped . | . . . Power Chain Reactions . | . . . Alert | -11 -10 -10 ------- Run | Yrd Mat Min Maximum Alert Level . | . . . Low Security (%) 100 | 100 100 100 Level 1 . | . . . Level 2 . | . . . Level 3 . | . . . Level 4 . | . . . Level 5 . | . . . High Security . | . . . Max Security . | . . . Peak Influence 100 | 5 100 60 Initial . | . . . Average 8 | 1 7 10 Influence Increases 348 | 20 193 135 Destroy 0b10 Robot/C 180 | . 80 100 Destroy 0b10 Robot/NC 70 | 20 45 5 Destroy Leader 58 | . 28 30 Successful Hack 40 | . 40 . Influence Decreases 348 | 20 193 135 Time Decay 348 | 20 193 135 Squads Dispatched . | . . . Investigation . | . . . Extermination . | . . . Reinforcement . | . . . Assault . | . . . Garrison . | . . . Intercept . | . . . Searches Triggered . | . . . Construction Impeded . | . . . Haulers Reinforced . | . . . Active Scanning Responses . | . . . Cargo Convoy Interrupts . | . . . Stealth | -11 -10 -10 --------- Run | Yrd Mat Min Distress Signals . | . . . Communications Jammed . | . . . Distress Signals . | . . . Times Spotted 34 | . 10 24 Peak Tracking Total 16 | . 4 16 Tactical Retreats 1 | . . 1 Traps | -11 -10 -10 ------- Run | Yrd Mat Min Traps Triggered 5 | . 5 . Indirectly . | . . . Trap Hack Attempts . | . . . Triggered . | . . . Disarmed . | . . . Reprogrammed . | . . . Reused . | . . . Traps Extracted . | . . . Installed . | . . . Triggered . | . . . Machines | -11 -10 -10 ---------- Run | Yrd Mat Min Machines Disabled . | . . . Max in Single Turn . | . . . Machines Repaired . | . . . Machines Dismantled . | . . . Machines Sabotaged . | . . . Overloaded Fab Kills . | . . . Hacking | -11 -10 -10 --------- Run | Yrd Mat Min Machines Accessed 8 | . 8 . Terminals 6 | . 6 . Fabricators . | . . . Repair Stations . | . . . Recycling Units 2 | . 2 . Scanalyzers . | . . . Garrison Access . | . . . Total Hacks 23 | . 23 . Successful 10 | . 10 . Failed 13 | . 13 . Catastrophic . | . . . Database Lockouts . | . . . Manual 14 | . 14 . Terminals 21 | . 21 . Fabricators . | . . . Repair Stations . | . . . Recycling Units 2 | . 2 . Scanalyzers . | . . . Garrison Access . | . . . Terminal Hacks 8 | . 8 . Part Schematic 4 | . 4 . Robot Schematic 1 | . 1 . Robot Analysis 2 | . 2 . Repair Station Index 1 | . 1 . Fabricator Hacks . | . . . Repair Station Hacks . | . . . Recycling Unit Hacks 2 | . 2 . Retrieve Components 2 | . 2 . Scanalyzer . | . . . Garrison Access Hacks . | . . . Unauthorized Hacks . | . . . Terminals . | . . . Fabricators . | . . . Repair Stations . | . . . Recycling Units . | . . . Scanalyzers . | . . . Garrison Access . | . . . Data Cores Recovered . | . . . Used . | . . . Hacking Detections 5 | . 5 . Full Trace Events 1 | . 1 . Feedback Events . | . . . Feedback Blocked . | . . . Robot Schematics Acquired 1 | . 1 . Robots Built . | . . . Authchips . | . . . Time . | . . . Total Robot Build Rating . | . . . Part Schematics Acquired 3 | . 3 . Parts Built . | . . . Authchips . | . . . Time . | . . . Total Part Build Rating . | . . . Part Studies Acquired . | . . . Parts Repaired . | . . . Time . | . . . Parts Recycled . | . . . Recycled Matter . | . . . Retrieved Matter . | . . . Retrieved Components 13 | . 13 . Parts Scanalyzed . | . . . Part Schematics Acquired . | . . . Parts Damaged . | . . . Bothacking | -11 -10 -10 ------------ Run | Yrd Mat Min Used RIF Installer . | . . . Robots Hacked . | . . . Non-combat . | . . . Combat . | . . . Robot Hacks Applied . | . . . Relay Couplers Released . | . . . Fabnet Peak Effective % . | . . . Robots Rewired . | . . . Allies Hacked . | . . . Hacks Repelled . | . . . Allies | -11 -10 -10 -------- Run | Yrd Mat Min Total Allies . | . . . Largest Group . | . . . Highest-Rated Group . | . . . Highest-Rated Ally . | . . . Total Orders . | . . . Ally Attacks . | . . . Total Damage . | . . . Kills . | . . . Allies Corrupted . | . . . Allies Melted . | . . . Intel | -11 -10 -10 ------- Run | Yrd Mat Min Active Infowar (turns) 1042 | . 645 397 Structural 1042 | . 645 397 Robot Analysis Total 2 | . 2 . Derelict Logs Recovered 1 | . . 1 Drone Launches . | . . . Drone Recoveries . | . . . Exploration | -11 -10 -10 ------------- Run | Yrd Mat Min Turns Passed 1652 | 113 1068 471 Spaces Moved 683 | 57 502 124 Core 25 | 15 10 . Treads 658 | 42 492 124 Legs . | . . . Wheels . | . . . Hover . | . . . Flight . | . . . Fastest Speed 50 | 50 160 160 Average Speed 207 | 131 190 307 Slowest Speed 320 | 160 300 320 Overloaded Moves . | . . . Propulsion Burnouts . | . . . Robots Hopped . | . . . Potential Cave-ins . | . . . Cave-ins Triggered . | . . . Exploration Rate (%) 36 | 3 67 40 Regions Visited 2 Branch Regions 1 Pre-discovered Areas . | . . . Known Exits Taken 2 | 1 1 . Unknown Exits Taken . | . . . Scrap Searched . | . . . Spaces Dug . | . . . Terrain Destroyed . | . . . Melee . | . . . Projectile . | . . . AOE . | . . . Terrain Rammed . | . . . Walls Destroyed . | . . . Machines Disabled . | . . . Actions | -11 -10 -10 --------- Run | Yrd Mat Min Total 839 | 82 580 177 Wait 26 | 6 12 8 Move 681 | 56 501 124 Hop . | . . . Pick Up 34 | 7 25 2 Fast Attach 3 | 1 2 . Attach 24 | 5 12 7 Detach 6 | . 3 3 Swap . | . . . Drop 7 | . 4 3 Fire 58 | 7 21 30 Melee . | . . . Ram . | . . . Kick . | . . . Crush . | . . . Escape Stasis . | . . . Rewire . | . . . Trap . | . . . Miscellaneous . | . . . Route ------- -11/Scrapyard -10/Materials (discovered 4 exits: *Mat x2 / *Min / *Sub) -10/Mines History --------- Turn | Location | Event 2 | -11/Scrapyard | Met Revision 17 8 | -11/Scrapyard | Identified exit to Materials 8 | -11/Scrapyard | Discovered exit to Materials (range 16) 114 | -11/Scrapyard | Entered Materials 114 | -10/Materials | Evolved 1 slot: Utility x1 304 | -10/Materials | Build established: Hacker-Mutant 394 | -10/Materials | Identified exit to Materials 394 | -10/Materials | Discovered exit to Materials (range 10) 432 | -10/Materials | Identified exit to Subcaves 432 | -10/Materials | Discovered exit to Subcaves (range 9) 897 | -10/Materials | Discovered exit to Materials (range 16) 1170 | -10/Materials | Identified exit to Mines 1170 | -10/Materials | Discovered exit to Mines (range 6) 1182 | -10/Materials | Entered Mines 1198 | -10/Mines | Assembled infested the area 1203 | -10/Mines | Assisted by a Guerilla fighting off Assembled 1255 | -10/Mines | Core integrity fell below 50% 1267 | -10/Mines | Destroyed 8 combat bots 1298 | -10/Mines | Lost 6 parts (1p2n1u2w) 1320 | -10/Mines | Core integrity fell below 20% 1483 | -10/Mines | YI-UF0 nonchalantly dropped a Grenade Launcher on the ground 1653 | -10/Mines | Destroyed by YI-UF0 with YI-UF0's Doublenader Last Messages --------------- 01476_ U-05 Engineer lays Concrete. 01476_ K-01 Serf collects debris. 01477_ U-05 Engineer builds a Wall. 01477_ U-05 Engineer lays Concrete. 01478_ U-05 Engineer builds a Wall. 01479_ YI-UF0 mumbles something. 01482_ K-01 Serf collects debris. 01482_ U-05 Engineer builds a Wall. 01483_ YI-UF0 nonchalantly drops a Grenade Launcher on the ground. 01483_ U-05 Engineer lays Concrete. 01485_ U-05 Engineer builds a Wall. 01486_ K-01 Serf collects debris. 01488_ U-05 Engineer lays Concrete. 01496_ U-05 Engineer builds a Wall. 01642_ U-05 Engineer destroyed. 01648_ The unstable cave ceiling collapses. 01650_ T-07 Excavator destroyed. 01651_ YI-UF0 mumbles something. 01651_ The unstable cave ceiling collapses. Map ----- +----------------------------------------------------+ | | | | | | | | | | | | | ?????????????????????????????????? | | ?????????????????????????????????? | | ?????????????????????????????????? | | ?######??????????????????????????? | | ##########################???????? | | ### #####################???????? | | ## #### ##?????### | | ## #### !! ##????#### | | ### ### ! ##????### | | ?## ### !! ##????## | | ?### !! ##????## | | ?### ##### ##????### | | ??## ##### ##????### | | ??## ##### ##????### | | ??## #####################???### | | ??## !% # ############??#### | | ??#### = ########?????#### | | ??#### # ### ########### | | ????## ## ######### | | ????## @ # ### | | ????## # ## ## ### | | ????## ## # # | | ????## # ## | | ????#### ###### | | ????#### # #### | | ?????### ! = ### | | ?????## ]% # # | | ?????## * ## ### #### | | ?????## ## ######### # #### | | ?????## #### ###### #### #### | | ?????## g #### ########### #### | | ?????## ### #??####### #### | | ?????## ## ???????## #### | | ?????## ## ??????## ## | | ?????### ### ?????## ### | | ?????#### ####### ????## ### | | ??????### ?####### ????## ### | | ???????## ??????##### ????## ## | | ???????# ????????#### ????## | | ???????????????????????????###### | | ???????????????????????????####### | | ???????????????????????????????### | | ????????????????????????????????## | | ?????????????????????????????????# | +----------------------------------------------------+ Best States ------------- Heat Dissipation 25 Energy Generation 10 Energy Capacity 250 Matter Stores 300 Matter Capacity 300 Sight Range 16 Terrain Scan Density 10 Armor Coverage 225 Resistance: KI 35 Resistance: TH 35 Resistance: EX 35 Resistance: EM 35 Resistance: I 35 Resistance: S 35 Resistance: P 35 Evasion (%) 50 Recoil Reduction 2 Offensive Hacking 20 Item Schematics ----------------- Cargo Storage Unit | -10/Materials | Hacked Huge Storage Unit | -10/Materials | Hacked Beam Cannon | -10/Materials | Hacked Robot Schematics ------------------ S-10 Pest | -10/Materials | Hacked Fabricated ------------ Nothing Repaired ---------- Nothing Studied --------- None Alien Tech Used ----------------- None Achievements -------------- None Challenges ------------ None Game ------ Seed CooledZipPlatform Manual? 0 Play Time 00:10:49 Cumulative 320.7 hours Start 2026.01.28 @ 15:16:18 End 2026.01.28 @ 15:24:27 Sessions 1 Manual Loads 0 Difficulty Explorer Special Mode None Game No. 501 Rogue 0 Adventurer 0 Explorer 501 Win Type - Total 0 Types 0/0/0/0/0/0/0/0/0/0 Lore% 77 Gallery% 70 Achievement% 56 Wizard Run 0 Options --------- Layout 1 ASCII 0 Keyboard 0 Movement Mouse Keybinds 1 Fullscreen 1 Font 24/Smallcaps Map View 50x35 Zoom Use 0% Tactical HUD 1 Map Filters NONE Filters NONE Steam 1 RUN: a91b2957-ac64-4c91-a35d-8b886cb10a62